[Event "*** Titled Tuesday Blitz"]
[Site "Chess.com"]
[Date "2021.03.16"]
[Round "6"]
[White "dennisodessa"]
[Black "Shuvalov"]
[Result "0-1"]
[WhiteElo "2352"]
[BlackElo "2487"]
[TimeControl "180+1"]
[EndTime "11:06:57 PDT"]
[Termination "Shuvalov won by resignation"]

1. d4 {[%clk 0:02:59.5]} 1... d5 {[%clk 0:02:50.6]} 2. c4 {[%clk 0:02:59.5]}
2... c6 {[%clk 0:02:50.6]} 3. Nf3 {[%clk 0:02:59.7]} 3... Nf6 {[%clk 0:02:50.4]}
4. Nbd2 {[%clk 0:03:00.5]} 4... Bf5 {[%clk 0:02:45.4]} 5. Nh4 {[%clk 0:03:00.4]}
5... Bg6 {[%clk 0:02:41.3]} 6. Qb3 {[%clk 0:03:00.3]} 6... Qc7 {[%clk
0:02:36.6]} 7. e3 {[%clk 0:02:57.3]} 7... e6 {[%clk 0:02:35.1]} 8. h3 {[%clk
0:02:57]} 8... Nbd7 {[%clk 0:02:34.5]} 9. Nxg6 {[%clk 0:02:56.7]} 9... hxg6
{[%clk 0:02:34.2]} 10. Be2 {[%clk 0:02:57.6]} 10... g5 {[%clk 0:02:25.6]} 11.
Nf3 {[%clk 0:02:24.7]} 11... g4 {[%clk 0:02:23.4]} 12. Ne5 {[%clk 0:02:24.7]}
12... gxh3 {[%clk 0:02:17.2]} 13. Rxh3 {[%clk 0:02:22]} 13... Rxh3 {[%clk
0:02:16.4]} 14. gxh3 {[%clk 0:02:22.9]} 14... Nxe5 {[%clk 0:02:06.5]} 15. dxe5
{[%clk 0:02:22.4]} 15... Ne4 {[%clk 0:02:06.2]} 16. f3 {[%clk 0:02:06.7]} 16...
Qa5+ {[%clk 0:01:54.7]} 17. Kf1 {[%clk 0:02:05.3]} 17... Nc5 {[%clk 0:01:44.1]}
18. Qc3 {[%clk 0:02:04.5]} 18... Qd8 {[%clk 0:01:37.8]} 19. b4 {[%clk
0:01:59.7]} 19... Na4 {[%clk 0:01:33.2]} 20. Qc2 {[%clk 0:01:49.7]} 20... Nb6
{[%clk 0:01:29.8]} 21. c5 {[%clk 0:01:41.3]} 21... Nd7 {[%clk 0:01:29.3]} 22.
Bb2 {[%clk 0:01:39]} 22... Qh4 {[%clk 0:01:27.4]} 23. Kg2 {[%clk 0:01:38.7]}
23... Qxb4 {[%clk 0:01:25.2]} 24. Bd4 {[%clk 0:01:36.9]} 24... Nxc5 {[%clk
0:01:09.1]} 25. Rb1 {[%clk 0:01:36.9]} 25... Qa3 {[%clk 0:01:07.8]} 26. Bxc5
{[%clk 0:01:34.5]} 26... Qxc5 {[%clk 0:00:58.5]} 27. Qxc5 {[%clk 0:01:34.3]}
27... Bxc5 {[%clk 0:00:59.4]} 28. Rxb7 {[%clk 0:01:35.1]} 28... Bxe3 {[%clk
0:00:59.2]} 29. Ba6 {[%clk 0:01:21.4]} 29... c5 {[%clk 0:00:51.1]} 30. Kg3
{[%clk 0:01:07.2]} 30... g5 {[%clk 0:00:49.5]} 31. Kg4 {[%clk 0:01:05.4]} 31...
c4 {[%clk 0:00:44.6]} 32. h4 {[%clk 0:00:34]} 32... gxh4 {[%clk 0:00:43.9]} 33.
Kxh4 {[%clk 0:00:34.9]} 33... Bf4 {[%clk 0:00:40.6]} 34. Kg4 {[%clk 0:00:30.3]}
34... Bxe5 {[%clk 0:00:40.5]} 35. f4 {[%clk 0:00:31.2]} 35... Bd4 {[%clk
0:00:39.4]} 36. f5 {[%clk 0:00:32.1]} 36... Kf8 {[%clk 0:00:31.1]} 37. fxe6
{[%clk 0:00:28.2]} 37... fxe6 {[%clk 0:00:32]} 38. Kh5 {[%clk 0:00:23.1]} 38...
Rd8 {[%clk 0:00:28.1]} 39. Kg6 {[%clk 0:00:21.7]} 39... Rd6 {[%clk 0:00:28.1]}
40. Rf7+ {[%clk 0:00:18.4]} 40... Ke8 {[%clk 0:00:26.8]} 41. Bb5+ {[%clk
0:00:18.9]} 41... Kd8 {[%clk 0:00:26.6]} 42. a4 {[%clk 0:00:15.5]} 42... a6
{[%clk 0:00:25.1]} 43. Rf8+ {[%clk 0:00:14.6]} 43... Kc7 {[%clk 0:00:25.1]} 44.
Be8 {[%clk 0:00:14.1]} 44... c3 {[%clk 0:00:22]} 45. a5 {[%clk 0:00:13.3]} 45...
c2 {[%clk 0:00:20.6]} 46. Rf1 {[%clk 0:00:10.4]} 46... Be3 {[%clk 0:00:20.3]}
47. Rf7+ {[%clk 0:00:09.3]} 47... Kb8 {[%clk 0:00:19.7]} 48. Ba4 {[%clk
0:00:03.4]} 48... c1=Q {[%clk 0:00:18.6]} 49. Rf8+ {[%clk 0:00:04.1]} 0-1

[Event "*** Titled Tuesday Blitz"]
[Site "Chess.com"]
[Date "2021.03.16"]
[Round "6"]
[White "Anton_Demchenko"]
[Black "Vincent_Vega95"]
[Result "1-0"]
[WhiteElo "2889"]
[BlackElo "2748"]
[TimeControl "180+1"]
[EndTime "11:07:01 PDT"]
[Termination "Anton_Demchenko won by checkmate"]

1. e4 {[%clk 0:03:00.9]} 1... c5 {[%clk 0:02:58.9]} 2. Nf3 {[%clk 0:03:00.9]}
2... d6 {[%clk 0:02:59.2]} 3. d4 {[%clk 0:03:00.7]} 3... cxd4 {[%clk 0:02:59.7]}
4. Qxd4 {[%clk 0:03:01.6]} 4... a6 {[%clk 0:02:58.8]} 5. Be2 {[%clk 0:03:01.4]}
5... Nc6 {[%clk 0:02:58.8]} 6. Qe3 {[%clk 0:03:02]} 6... g6 {[%clk 0:02:58.9]}
7. O-O {[%clk 0:03:02.6]} 7... Bg7 {[%clk 0:02:57]} 8. h3 {[%clk 0:03:03.1]}
8... Nf6 {[%clk 0:02:57.2]} 9. Rd1 {[%clk 0:03:03.7]} 9... Nd7 {[%clk
0:02:52.3]} 10. c4 {[%clk 0:03:02.5]} 10... O-O {[%clk 0:02:51.4]} 11. Nc3
{[%clk 0:03:03]} 11... Nc5 {[%clk 0:02:35.1]} 12. Bd2 {[%clk 0:02:58.3]} 12...
f5 {[%clk 0:02:34.1]} 13. exf5 {[%clk 0:02:51.5]} 13... Bxf5 {[%clk 0:02:33.5]}
14. Be1 {[%clk 0:02:41.4]} 14... Kh8 {[%clk 0:02:16.1]} 15. b3 {[%clk
0:01:56.9]} 15... Qd7 {[%clk 0:02:06.4]} 16. Nd5 {[%clk 0:01:56.7]} 16... Qe6
{[%clk 0:01:46.4]} 17. Qxe6 {[%clk 0:01:45.4]} 17... Bxe6 {[%clk 0:01:39.7]} 18.
Rac1 {[%clk 0:01:45.8]} 18... a5 {[%clk 0:01:20.6]} 19. Bc3 {[%clk 0:00:51.8]}
19... Rad8 {[%clk 0:00:52.1]} 20. Bxg7+ {[%clk 0:00:42.8]} 20... Kxg7 {[%clk
0:00:53]} 21. Ng5 {[%clk 0:00:43.5]} 21... Bg8 {[%clk 0:00:50.3]} 22. h4 {[%clk
0:00:38.6]} 22... h6 {[%clk 0:00:50.5]} 23. Nh3 {[%clk 0:00:38.9]} 23... e6
{[%clk 0:00:47.4]} 24. Nc3 {[%clk 0:00:36.6]} 24... e5 {[%clk 0:00:45.6]} 25. f3
{[%clk 0:00:31.2]} 25... Nd4 {[%clk 0:00:43.5]} 26. Nf2 {[%clk 0:00:30.4]} 26...
Rf4 {[%clk 0:00:38.7]} 27. Bd3 {[%clk 0:00:18.8]} 27... Be6 {[%clk 0:00:27.6]}
28. Be4 {[%clk 0:00:18.7]} 28... b6 {[%clk 0:00:20.7]} 29. Rd2 {[%clk
0:00:09.3]} 29... Rdf8 {[%clk 0:00:20.1]} 30. Ne2 {[%clk 0:00:09.2]} 30... Nxe2+
{[%clk 0:00:11.1]} 31. Rxe2 {[%clk 0:00:10.1]} 31... Rd8 {[%clk 0:00:08.9]} 32.
g3 {[%clk 0:00:08.8]} 32... Rff8 {[%clk 0:00:08]} 33. Rd1 {[%clk 0:00:09.7]}
33... Kf6 {[%clk 0:00:08.2]} 34. Red2 {[%clk 0:00:09.3]} 34... Ke7 {[%clk
0:00:08.6]} 35. Kg2 {[%clk 0:00:08.9]} 35... Bc8 {[%clk 0:00:06.8]} 36. Bxg6
{[%clk 0:00:08]} 36... Bb7 {[%clk 0:00:06.7]} 37. Be4 {[%clk 0:00:07.8]} 37...
Nxe4 {[%clk 0:00:07.1]} 38. Nxe4 {[%clk 0:00:06.1]} 38... b5 {[%clk 0:00:06.6]}
39. cxb5 {[%clk 0:00:05.6]} 39... d5 {[%clk 0:00:07.1]} 40. Nc5 {[%clk
0:00:05.8]} 40... Ba8 {[%clk 0:00:07.6]} 41. a4 {[%clk 0:00:05.2]} 41... Rc8
{[%clk 0:00:07.6]} 42. Nd3 {[%clk 0:00:04.8]} 42... e4 {[%clk 0:00:07.3]} 43.
Nf4 {[%clk 0:00:04.4]} 43... Rc3 {[%clk 0:00:03.8]} 44. fxe4 {[%clk 0:00:04.3]}
44... dxe4 {[%clk 0:00:03.8]} 45. Rd7+ {[%clk 0:00:04.6]} 45... Kf6 {[%clk
0:00:04.4]} 46. R1d6+ {[%clk 0:00:04.6]} 46... Ke5 {[%clk 0:00:04.3]} 47. Kh3
{[%clk 0:00:04.4]} 47... Rg8 {[%clk 0:00:01.6]} 48. Re6+ {[%clk 0:00:04.4]}
48... Kf5 {[%clk 0:00:02.2]} 49. Rf7# {[%clk 0:00:04.4]} 1-0

[Event "*** Titled Tuesday Blitz"]
[Site "Chess.com"]
[Date "2021.03.16"]
[Round "6"]
[White "ellennilssen"]
[Black "FMalexhdez"]
[Result "0-1"]
[WhiteElo "2257"]
[BlackElo "2201"]
[TimeControl "180+1"]
[EndTime "11:07:01 PDT"]
[Termination "FMalexhdez won by checkmate"]

1. e4 {[%clk 0:03:00.9]} 1... c5 {[%clk 0:02:58.7]} 2. Nf3 {[%clk 0:02:59.8]}
2... d6 {[%clk 0:02:58.8]} 3. d4 {[%clk 0:03:00.2]} 3... cxd4 {[%clk 0:02:59.3]}
4. Nxd4 {[%clk 0:03:01.1]} 4... Nf6 {[%clk 0:02:59.2]} 5. Nc3 {[%clk 0:03:01.6]}
5... a6 {[%clk 0:02:59.7]} 6. Be3 {[%clk 0:02:57.1]} 6... e5 {[%clk 0:02:59.7]}
7. Nb3 {[%clk 0:02:56.6]} 7... Be6 {[%clk 0:02:59.5]} 8. Qd2 {[%clk 0:02:55.4]}
8... Nbd7 {[%clk 0:02:59.4]} 9. O-O-O {[%clk 0:02:49.8]} 9... Rc8 {[%clk
0:02:50]} 10. Kb1 {[%clk 0:02:50.3]} 10... b5 {[%clk 0:02:45]} 11. f3 {[%clk
0:02:50]} 11... h5 {[%clk 0:02:43.6]} 12. Nd5 {[%clk 0:02:47.1]} 12... Nxd5
{[%clk 0:02:39.6]} 13. exd5 {[%clk 0:02:48]} 13... Bf5 {[%clk 0:02:39.6]} 14.
Bd3 {[%clk 0:02:34.1]} 14... Bxd3 {[%clk 0:02:37.9]} 15. Qxd3 {[%clk 0:02:35]}
15... Be7 {[%clk 0:02:35.9]} 16. Rhe1 {[%clk 0:02:30.3]} 16... O-O {[%clk
0:02:32.2]} 17. h3 {[%clk 0:02:27.7]} 17... f5 {[%clk 0:02:29.7]} 18. g4 {[%clk
0:02:20]} 18... f4 {[%clk 0:02:29.2]} 19. Bf2 {[%clk 0:02:19]} 19... h4 {[%clk
0:02:27]} 20. Qd2 {[%clk 0:02:12.8]} 20... Nb6 {[%clk 0:01:53.6]} 21. Bxb6
{[%clk 0:02:09.1]} 21... Qxb6 {[%clk 0:01:53.5]} 22. Na5 {[%clk 0:02:09.7]}
22... Rc5 {[%clk 0:01:40.3]} 23. Nc6 {[%clk 0:02:02.8]} 23... Bf6 {[%clk
0:01:40]} 24. Re4 {[%clk 0:01:49.9]} 24... Rc8 {[%clk 0:01:22.8]} 25. Qd3 {[%clk
0:01:38.7]} 25... a5 {[%clk 0:01:18.2]} 26. Re2 {[%clk 0:01:20.7]} 26... b4
{[%clk 0:01:15.1]} 27. Qf5 {[%clk 0:01:16.2]} 27... Qa6 {[%clk 0:01:11.1]} 28.
Red2 {[%clk 0:01:10.1]} 28... Re8 {[%clk 0:01:08]} 29. Qd7 {[%clk 0:01:06.8]}
29... Qc8 {[%clk 0:00:41.6]} 30. Qxd6 {[%clk 0:01:04.9]} 30... Rc4 {[%clk
0:00:36]} 31. Nxa5 {[%clk 0:01:00.1]} 31... Rc5 {[%clk 0:00:32]} 32. Nc6 {[%clk
0:00:58.3]} 32... Rc4 {[%clk 0:00:31.2]} 33. Nxb4 {[%clk 0:00:39.2]} 33... e4
{[%clk 0:00:30.2]} 34. fxe4 {[%clk 0:00:36.7]} 34... Be7 {[%clk 0:00:22]} 35.
Qe6+ {[%clk 0:00:12.7]} 35... Qxe6 {[%clk 0:00:21.7]} 36. dxe6 {[%clk
0:00:13.6]} 36... Rxb4 {[%clk 0:00:21.4]} 37. a3 {[%clk 0:00:13.2]} 37... Rxe4
{[%clk 0:00:21]} 38. Rd7 {[%clk 0:00:09]} 38... Rxe6 {[%clk 0:00:20.2]} 39. Rb7
{[%clk 0:00:08.2]} 39... f3 {[%clk 0:00:19.7]} 40. Rf1 {[%clk 0:00:08.5]} 40...
Rf8 {[%clk 0:00:18.3]} 41. a4 {[%clk 0:00:08.1]} 41... f2 {[%clk 0:00:18.3]} 42.
Ka2 {[%clk 0:00:07.7]} 42... Re1 {[%clk 0:00:18.2]} 43. Rxf2 {[%clk 0:00:08]}
43... Rxf2 {[%clk 0:00:16.5]} 44. Ra7 {[%clk 0:00:08.6]} 44... Rxc2 {[%clk
0:00:16]} 45. a5 {[%clk 0:00:08.6]} 45... Bf6 {[%clk 0:00:15.4]} 46. Rb7 {[%clk
0:00:08.9]} 46... Ree2 {[%clk 0:00:14.8]} 47. a6 {[%clk 0:00:08.7]} 47... Rxb2+
{[%clk 0:00:15.1]} 48. Rxb2 {[%clk 0:00:09.6]} 48... Rxb2+ {[%clk 0:00:14.9]}
49. Ka3 {[%clk 0:00:10.5]} 49... Rb1 {[%clk 0:00:12.9]} 50. Ka4 {[%clk
0:00:10.3]} 50... Ra1+ {[%clk 0:00:12.9]} 51. Kb5 {[%clk 0:00:10.4]} 51... Bd4
{[%clk 0:00:11.6]} 52. Kc4 {[%clk 0:00:09.1]} 52... Rxa6 {[%clk 0:00:10.4]} 53.
Kxd4 {[%clk 0:00:09.4]} 53... Ra3 {[%clk 0:00:11]} 54. Ke4 {[%clk 0:00:10.3]}
54... Rxh3 {[%clk 0:00:10.9]} 55. Kf4 {[%clk 0:00:11.2]} 55... Rg3 {[%clk
0:00:11.1]} 56. Kg5 {[%clk 0:00:12.1]} 56... h3 {[%clk 0:00:10.3]} 57. Kh5
{[%clk 0:00:13]} 57... h2 {[%clk 0:00:09.8]} 58. Kg5 {[%clk 0:00:13.9]} 58...
h1=Q {[%clk 0:00:09.5]} 59. Kf5 {[%clk 0:00:14.4]} 59... Qf3+ {[%clk 0:00:09.8]}
60. Kg5 {[%clk 0:00:15.3]} 60... Rxg4+ {[%clk 0:00:10]} 61. Kh5 {[%clk
0:00:15.3]} 61... Qh3# {[%clk 0:00:10.5]} 0-1

[Event "*** Titled Tuesday Blitz"]
[Site "Chess.com"]
[Date "2021.03.16"]
[Round "6"]
[White "djano"]
[Black "Rodalquilar"]
[Result "0-1"]
[WhiteElo "2497"]
[BlackElo "2673"]
[TimeControl "180+1"]
[EndTime "11:07:04 PDT"]
[Termination "Rodalquilar won by resignation"]

1. e4 {[%clk 0:03:00.9]} 1... d5 {[%clk 0:03:00.3]} 2. exd5 {[%clk 0:03:00.5]}
2... Qxd5 {[%clk 0:03:01.2]} 3. Nf3 {[%clk 0:02:59.5]} 3... Bg4 {[%clk
0:03:00.8]} 4. Be2 {[%clk 0:02:59.4]} 4... Nc6 {[%clk 0:03:01.2]} 5. h3 {[%clk
0:02:58.6]} 5... Bxf3 {[%clk 0:03:00.8]} 6. Bxf3 {[%clk 0:02:59.5]} 6... Qe6+
{[%clk 0:03:01.5]} 7. Qe2 {[%clk 0:02:58.7]} 7... Qxe2+ {[%clk 0:03:01.6]} 8.
Bxe2 {[%clk 0:02:58.1]} 8... O-O-O {[%clk 0:03:02]} 9. c3 {[%clk 0:02:52.4]}
9... e5 {[%clk 0:03:02.2]} 10. d3 {[%clk 0:02:46.1]} 10... f5 {[%clk 0:03:02.3]}
11. Nd2 {[%clk 0:02:45.3]} 11... Nf6 {[%clk 0:03:02.4]} 12. Nc4 {[%clk
0:02:37.9]} 12... g6 {[%clk 0:03:01.7]} 13. Bg5 {[%clk 0:02:36.7]} 13... Bg7
{[%clk 0:03:02.1]} 14. O-O-O {[%clk 0:02:34.1]} 14... h6 {[%clk 0:03:02.1]} 15.
Be3 {[%clk 0:02:29.8]} 15... g5 {[%clk 0:02:59.1]} 16. Kc2 {[%clk 0:02:16.3]}
16... Rhe8 {[%clk 0:02:58.7]} 17. Bc1 {[%clk 0:02:10.2]} 17... e4 {[%clk
0:02:20]} 18. Rhe1 {[%clk 0:02:03.8]} 18... f4 {[%clk 0:01:39]} 19. dxe4 {[%clk
0:01:53.3]} 19... Rxd1 {[%clk 0:01:39.1]} 20. Bxd1 {[%clk 0:01:47.4]} 20... Rxe4
{[%clk 0:01:34.7]} 21. Rxe4 {[%clk 0:01:23.2]} 21... Nxe4 {[%clk 0:01:35.6]} 22.
Bg4+ {[%clk 0:01:21.8]} 22... Kd8 {[%clk 0:01:34.1]} 23. f3 {[%clk 0:01:19.3]}
23... Nf6 {[%clk 0:01:23.4]} 24. Bf5 {[%clk 0:01:19.1]} 24... b5 {[%clk
0:01:17]} 25. Nd2 {[%clk 0:01:15]} 25... b4 {[%clk 0:01:11.9]} 26. Ne4 {[%clk
0:01:14]} 26... Nd5 {[%clk 0:01:11.6]} 27. Be6 {[%clk 0:01:00.5]} 27... Nb6
{[%clk 0:01:05.2]} 28. Bd2 {[%clk 0:00:51.8]} 28... Ke7 {[%clk 0:01:04.9]} 29.
Bb3 {[%clk 0:00:45.9]} 29... a5 {[%clk 0:01:00]} 30. a4 {[%clk 0:00:37.6]} 30...
bxa3 {[%clk 0:00:53]} 31. bxa3 {[%clk 0:00:38.5]} 31... a4 {[%clk 0:00:53.6]}
32. Ba2 {[%clk 0:00:36.6]} 32... Na5 {[%clk 0:00:52.6]} 33. Nc5 {[%clk
0:00:20.4]} 33... Kd6 {[%clk 0:00:51.3]} 34. Nd3 {[%clk 0:00:19.8]} 34... Nac4
{[%clk 0:00:39.2]} 35. Bc1 {[%clk 0:00:19.7]} 35... c5 {[%clk 0:00:36.8]} 36.
Nf2 {[%clk 0:00:19.8]} 36... Kc6 {[%clk 0:00:29.7]} 37. Kd3 {[%clk 0:00:18.1]}
37... Nd6 {[%clk 0:00:19.8]} 38. Ne4 {[%clk 0:00:15.7]} 38... c4+ {[%clk
0:00:17.3]} 39. Ke2 {[%clk 0:00:15.5]} 39... Nb5 {[%clk 0:00:16.9]} 40. Bb2
{[%clk 0:00:13.2]} 40... Bf8 {[%clk 0:00:16.5]} 41. Nd2 {[%clk 0:00:09.4]} 41...
Bxa3 {[%clk 0:00:13.1]} 42. Ba1 {[%clk 0:00:08.7]} 42... Kd5 {[%clk 0:00:11.9]}
43. Ne4 {[%clk 0:00:06.5]} 43... Bc1 {[%clk 0:00:10.3]} 44. Nf6+ {[%clk
0:00:06.3]} 44... Ke6 {[%clk 0:00:10]} 45. Ne4 {[%clk 0:00:05]} 45... a3 {[%clk
0:00:09.6]} 46. Nc5+ {[%clk 0:00:04.3]} 46... Kd5 {[%clk 0:00:09.5]} 47. Na6
{[%clk 0:00:03.7]} 47... Bb2 {[%clk 0:00:07.7]} 48. Nb4+ {[%clk 0:00:03.2]}
48... Kc5 {[%clk 0:00:08.3]} 49. Nc2 {[%clk 0:00:02.8]} 49... Nxc3+ {[%clk
0:00:07.5]} 50. Kd2 {[%clk 0:00:02.3]} 50... Nxa2 {[%clk 0:00:07.9]} 0-1

[Event "*** Titled Tuesday Blitz"]
[Site "Chess.com"]
[Date "2021.03.16"]
[Round "6"]
[White "GMaka"]
[Black "hypert"]
[Result "0-1"]
[WhiteElo "2458"]
[BlackElo "2570"]
[TimeControl "180+1"]
[EndTime "11:07:04 PDT"]
[Termination "hypert won on time"]

1. d4 {[%clk 0:03:00.9]} 1... d5 {[%clk 0:02:59.4]} 2. Nf3 {[%clk 0:02:56]} 2...
Nf6 {[%clk 0:02:58.8]} 3. Bf4 {[%clk 0:02:56]} 3... c5 {[%clk 0:02:58.5]} 4. e3
{[%clk 0:02:56.9]} 4... Nc6 {[%clk 0:02:58.4]} 5. c3 {[%clk 0:02:55.1]} 5... Qb6
{[%clk 0:02:57.7]} 6. Qb3 {[%clk 0:02:51.7]} 6... c4 {[%clk 0:02:58]} 7. Qc2
{[%clk 0:02:51.9]} 7... Bf5 {[%clk 0:02:57.6]} 8. Qc1 {[%clk 0:02:52.4]} 8... e6
{[%clk 0:02:57.6]} 9. Nbd2 {[%clk 0:02:49.9]} 9... Be7 {[%clk 0:02:51.7]} 10. h3
{[%clk 0:02:34.7]} 10... h6 {[%clk 0:02:51.7]} 11. Be2 {[%clk 0:02:32.4]} 11...
Qd8 {[%clk 0:02:51.9]} 12. Ne5 {[%clk 0:02:30]} 12... Nxe5 {[%clk 0:02:48.4]}
13. Bxe5 {[%clk 0:02:26.3]} 13... O-O {[%clk 0:02:47.6]} 14. g4 {[%clk
0:02:24.6]} 14... Bh7 {[%clk 0:02:46.9]} 15. h4 {[%clk 0:02:20]} 15... Nd7
{[%clk 0:02:46.4]} 16. Bg3 {[%clk 0:02:19.5]} 16... b5 {[%clk 0:02:42.5]} 17. a3
{[%clk 0:02:18.1]} 17... a5 {[%clk 0:02:41.9]} 18. g5 {[%clk 0:01:56.9]} 18...
hxg5 {[%clk 0:02:40.8]} 19. hxg5 {[%clk 0:01:57.8]} 19... Bxg5 {[%clk
0:02:41.1]} 20. Nf3 {[%clk 0:01:56.8]} 20... Bh6 {[%clk 0:02:26.1]} 21. Qd2
{[%clk 0:01:26.2]} 21... b4 {[%clk 0:02:25.2]} 22. axb4 {[%clk 0:01:22.3]} 22...
axb4 {[%clk 0:02:24.6]} 23. Rxa8 {[%clk 0:01:23.2]} 23... Qxa8 {[%clk
0:02:24.5]} 24. Bd6 {[%clk 0:01:13.2]} 24... bxc3 {[%clk 0:02:20.5]} 25. bxc3
{[%clk 0:01:14.1]} 25... Rc8 {[%clk 0:02:16.1]} 26. O-O {[%clk 0:01:13.8]} 26...
Rc6 {[%clk 0:02:13.6]} 27. Bg3 {[%clk 0:01:13.2]} 27... Ra6 {[%clk 0:02:07.2]}
28. Rc1 {[%clk 0:00:50.6]} 28... Ra2 {[%clk 0:02:02.2]} 29. Qe1 {[%clk
0:00:51.1]} 29... Be4 {[%clk 0:01:45.3]} 30. Nd2 {[%clk 0:00:51]} 30... Nf6
{[%clk 0:01:35.3]} 31. Be5 {[%clk 0:00:43.5]} 31... Bd3 {[%clk 0:01:34.2]} 32.
Bxf6 {[%clk 0:00:42.8]} 32... gxf6 {[%clk 0:01:33]} 33. Bf1 {[%clk 0:00:41.7]}
33... Bxf1 {[%clk 0:01:23.1]} 34. Nxf1 {[%clk 0:00:40.9]} 34... f5 {[%clk
0:01:19.7]} 35. Nh2 {[%clk 0:00:28.6]} 35... Qd8 {[%clk 0:01:09.8]} 36. Nf3
{[%clk 0:00:27.3]} 36... f4 {[%clk 0:01:07.1]} 37. e4 {[%clk 0:00:26.7]} 37...
Qf8 {[%clk 0:00:44.3]} 38. exd5 {[%clk 0:00:25.8]} 38... exd5 {[%clk 0:00:44.4]}
39. Ra1 {[%clk 0:00:25.5]} 39... Rxa1 {[%clk 0:00:40]} 40. Qxa1 {[%clk
0:00:24.9]} 40... Qc8 {[%clk 0:00:24.1]} 41. Kf1 {[%clk 0:00:21.4]} 41... Qh3+
{[%clk 0:00:22.5]} 42. Ke2 {[%clk 0:00:21.2]} 42... Qf5 {[%clk 0:00:23.1]} 43.
Qa8+ {[%clk 0:00:19]} 43... Bf8 {[%clk 0:00:20.6]} 44. Ne5 {[%clk 0:00:14.1]}
44... f3+ {[%clk 0:00:18.5]} 45. Kd2 {[%clk 0:00:11.5]} 45... Qf4+ {[%clk
0:00:16.6]} 46. Kc2 {[%clk 0:00:11.6]} 46... Qe4+ {[%clk 0:00:16.5]} 47. Kb2
{[%clk 0:00:08]} 47... Qe2+ {[%clk 0:00:16.4]} 48. Kb1 {[%clk 0:00:07.6]} 48...
Qe1+ {[%clk 0:00:16.8]} 49. Kb2 {[%clk 0:00:07.3]} 49... Qxf2+ {[%clk
0:00:17.7]} 50. Kb1 {[%clk 0:00:04.2]} 50... Qe1+ {[%clk 0:00:17.4]} 51. Kb2
{[%clk 0:00:04.4]} 51... Qe2+ {[%clk 0:00:17.6]} 52. Kb1 {[%clk 0:00:04.9]}
52... Qe4+ {[%clk 0:00:17.7]} 53. Kb2 {[%clk 0:00:04.6]} 53... f2 {[%clk
0:00:17.9]} 54. Nd7 {[%clk 0:00:03.3]} 54... Qe2+ {[%clk 0:00:17.5]} 0-1

[Event "*** Titled Tuesday Blitz"]
[Site "Chess.com"]
[Date "2021.03.16"]
[Round "6"]
[White "Grineva_Marianna"]
[Black "DinaBelenkaya"]
[Result "0-1"]
[WhiteElo "2253"]
[BlackElo "2377"]
[TimeControl "180+1"]
[EndTime "11:07:04 PDT"]
[Termination "DinaBelenkaya won by resignation"]

1. e4 {[%clk 0:03:00.9]} 1... d5 {[%clk 0:02:59.6]} 2. exd5 {[%clk 0:03:00.7]}
2... Qxd5 {[%clk 0:03:00.5]} 3. Nc3 {[%clk 0:03:01.1]} 3... Qa5 {[%clk
0:02:59.1]} 4. Bc4 {[%clk 0:03:01.3]} 4... Nf6 {[%clk 0:02:55.2]} 5. d3 {[%clk
0:02:55.4]} 5... g6 {[%clk 0:02:47.4]} 6. Qe2 {[%clk 0:02:51.4]} 6... Bg7 {[%clk
0:02:45.6]} 7. Bd2 {[%clk 0:02:51.6]} 7... Qb6 {[%clk 0:02:44.9]} 8. O-O-O
{[%clk 0:02:30.8]} 8... O-O {[%clk 0:02:16.9]} 9. h3 {[%clk 0:02:29.4]} 9... Nc6
{[%clk 0:01:58.2]} 10. Nf3 {[%clk 0:01:55.6]} 10... e6 {[%clk 0:01:24.6]} 11. g4
{[%clk 0:01:49.8]} 11... a5 {[%clk 0:01:01.9]} 12. Be3 {[%clk 0:01:26.3]} 12...
Qb4 {[%clk 0:01:01.1]} 13. a3 {[%clk 0:01:24.8]} 13... Qe7 {[%clk 0:00:58.1]}
14. Nd2 {[%clk 0:01:11.9]} 14... Nd7 {[%clk 0:00:55.9]} 15. Nde4 {[%clk
0:01:05.8]} 15... b5 {[%clk 0:00:50.6]} 16. Bxb5 {[%clk 0:01:01.5]} 16... Nd4
{[%clk 0:00:41.8]} 17. Qf1 {[%clk 0:00:39.4]} 17... Nxb5 {[%clk 0:00:39]} 18.
Nxb5 {[%clk 0:00:39.8]} 18... Rb8 {[%clk 0:00:39.7]} 19. Nbc3 {[%clk 0:00:38.9]}
19... Bb7 {[%clk 0:00:35.8]} 20. f3 {[%clk 0:00:37]} 20... Bxe4 {[%clk
0:00:33.9]} 21. fxe4 {[%clk 0:00:35.5]} 21... Bxc3 {[%clk 0:00:34.3]} 22. bxc3
{[%clk 0:00:36.4]} 22... Qxa3+ {[%clk 0:00:34.6]} 23. Kd2 {[%clk 0:00:36.9]}
23... Rb2 {[%clk 0:00:29.5]} 24. Rb1 {[%clk 0:00:31.2]} 24... Rfb8 {[%clk
0:00:27.9]} 25. Rxb2 {[%clk 0:00:29.5]} 25... Rxb2 {[%clk 0:00:28.8]} 26. Qc1
{[%clk 0:00:29.5]} 26... Qa2 {[%clk 0:00:22.6]} 27. Bd4 {[%clk 0:00:22.2]} 27...
c5 {[%clk 0:00:16.6]} 28. Be3 {[%clk 0:00:20.2]} 28... Ne5 {[%clk 0:00:13.8]}
29. Rf1 {[%clk 0:00:20.6]} 29... c4 {[%clk 0:00:10.1]} 30. Bd4 {[%clk
0:00:19.3]} 30... Nxd3 {[%clk 0:00:09.8]} 31. Qa1 {[%clk 0:00:16.6]} 31... Rxc2+
{[%clk 0:00:09.7]} 32. Ke3 {[%clk 0:00:16.6]} 32... Re2+ {[%clk 0:00:10.6]} 33.
Kf3 {[%clk 0:00:16.9]} 33... a4 {[%clk 0:00:05]} 34. Qxa2 {[%clk 0:00:16.4]}
34... Rxa2 {[%clk 0:00:05.9]} 35. Rb1 {[%clk 0:00:16.2]} 35... e5 {[%clk
0:00:06.5]} 36. Rb8+ {[%clk 0:00:16.1]} 36... Kg7 {[%clk 0:00:06.8]} 37. Be3
{[%clk 0:00:16.3]} 37... a3 {[%clk 0:00:06.3]} 38. Ra8 {[%clk 0:00:15.6]} 38...
Ra1 {[%clk 0:00:05.7]} 39. h4 {[%clk 0:00:14.8]} 39... a2 {[%clk 0:00:05.8]} 40.
Ke2 {[%clk 0:00:12.7]} 40... Re1+ {[%clk 0:00:04.9]} 41. Kd2 {[%clk 0:00:13.2]}
41... a1=Q {[%clk 0:00:05.8]} 42. Rxa1 {[%clk 0:00:12.8]} 42... Rxa1 {[%clk
0:00:06.7]} 43. h5 {[%clk 0:00:12.3]} 43... Ra2+ {[%clk 0:00:07.6]} 44. Kd1
{[%clk 0:00:11]} 44... Rg2 {[%clk 0:00:07]} 45. h6+ {[%clk 0:00:08.7]} 45... Kg8
{[%clk 0:00:07.4]} 46. g5 {[%clk 0:00:09]} 46... Rg3 {[%clk 0:00:07.4]} 47. Bb6
{[%clk 0:00:08.3]} 47... Rg4 {[%clk 0:00:08.1]} 48. Bc7 {[%clk 0:00:08.1]} 48...
Rxe4 {[%clk 0:00:09]} 49. Kd2 {[%clk 0:00:07.9]} 49... Rg4 {[%clk 0:00:08.4]}
50. Bd8 {[%clk 0:00:08.4]} 50... e4 {[%clk 0:00:08.9]} 51. Bf6 {[%clk
0:00:08.9]} 51... Rg2+ {[%clk 0:00:08.2]} 52. Ke3 {[%clk 0:00:09.3]} 52... Rg4
{[%clk 0:00:08.9]} 53. Kd4 {[%clk 0:00:08.6]} 53... Nb2 {[%clk 0:00:09.8]} 54.
Ke3 {[%clk 0:00:08.2]} 54... Nd1+ {[%clk 0:00:09.7]} 55. Kd4 {[%clk 0:00:08.6]}
55... e3+ {[%clk 0:00:10.6]} 56. Kc5 {[%clk 0:00:08.4]} 56... e2 {[%clk
0:00:10.9]} 57. Kd6 {[%clk 0:00:09.3]} 57... e1=Q {[%clk 0:00:11.2]} 0-1